[Event "Titled Tuesday Blitz June 20 Late 2023"]
[White "Goryachkina, Aleksandra"]
[Black "Liu, Casper"]
[WhiteFideId "4147103"]
[BlackFideId "1454153"]
[WhiteElo "2471"]
[BlackElo "2221"]
[Result "1-0"]
[Round "4"]
[TimeControl "180+2"]
[Date "2023.06.20"]
[WhiteClock "0:01:17"]
[BlackClock "0:01:34"]
[Board "92"]

1. e4 {[%clk 0:03:00]}  c5 {[%clk 0:02:58]} 2. Nf3 {[%clk 0:03:00]}  d6 {[%clk 0:02:59]} 3. d4 {[%clk 0:02:57]}  Nf6 {[%clk 0:02:59]} 4. Nc3 {[%clk 0:02:57]}  cxd4 {[%clk 0:03:00]} 5. Nxd4 {[%clk 0:02:57]}  Nc6 {[%clk 0:03:01]} 6. f3 {[%clk 0:02:48]}  e5 {[%clk 0:02:58]} 7. Nb3 {[%clk 0:02:47]}  Be6 {[%clk 0:02:57]} 8. Be3 {[%clk 0:02:47]}  d5 {[%clk 0:02:57]} 9. exd5 {[%clk 0:02:47]}  Nxd5 {[%clk 0:02:58]} 10. Nxd5 {[%clk 0:02:47]}  Qxd5 {[%clk 0:02:56]} 11. Qxd5 {[%clk 0:02:47]}  Bxd5 {[%clk 0:02:57]} 12. Bb5 {[%clk 0:02:47]}  Be7 {[%clk 0:02:55]} 13. O-O-O {[%clk 0:02:47]}  Bxb3 {[%clk 0:02:42]} 14. axb3 {[%clk 0:02:45]}  O-O {[%clk 0:02:42]} 15. Rd7 {[%clk 0:02:43]}  Bf6 {[%clk 0:02:27]} 16. Rxb7 {[%clk 0:02:39]}  Nb4 {[%clk 0:02:25]} 17. Bc4 {[%clk 0:02:18]}  Rfb8 {[%clk 0:02:23]} 18. Rxf7 {[%clk 0:02:13]}  Kh8 {[%clk 0:02:20]} 19. Rd1 {[%clk 0:02:08]}  a5 {[%clk 0:02:19]} 20. c3 {[%clk 0:01:57]}  Nc6 {[%clk 0:02:08]} 21. Rc7 {[%clk 0:01:56]}  Ne7 {[%clk 0:02:06]} 22. Rdd7 {[%clk 0:01:43]}  Nf5 {[%clk 0:02:06]} 23. Bd2 {[%clk 0:01:43]}  a4 {[%clk 0:02:04]} 24. b4 {[%clk 0:01:38]}  a3 {[%clk 0:02:04]} 25. bxa3 {[%clk 0:01:28]}  Rxa3 {[%clk 0:02:05]} 26. Ra7 {[%clk 0:01:26]}  Rxa7 {[%clk 0:02:02]} 27. Rxa7 {[%clk 0:01:26]}  Nd6 {[%clk 0:02:03]} 28. Bd3 {[%clk 0:01:24]}  Rc8 {[%clk 0:02:02]} 29. Kc2 {[%clk 0:01:23]}  Kg8 {[%clk 0:01:47]} 30. Rd7 {[%clk 0:01:22]}  Rc6 {[%clk 0:01:39]} 31. b5 {[%clk 0:01:17]}  Rb6 {[%clk 0:01:34]} 32. Be3 {[%clk 0:01:17]} 1-0


[Site "https://www.chess.com"]

[Event "Titled Tuesday Blitz June 20 Late 2023"]
[White "DopplerCharlotteDeWitte"]
[Black "Bilan, Danila"]
[BlackFideId "24161918"]
[WhiteElo "2655"]
[BlackElo "2146"]
[Result "1/2-1/2"]
[Round "4"]
[TimeControl "180+2"]
[Date "2023.06.20"]
[WhiteClock "0:00:07"]
[BlackClock "0:00:04"]
[Board "93"]

1. e4 {[%clk 0:02:50]}  c6 {[%clk 0:03:00]} 2. d4 {[%clk 0:02:50]}  d5 {[%clk 0:03:00]} 3. exd5 {[%clk 0:02:51]}  cxd5 {[%clk 0:03:00]} 4. Bd3 {[%clk 0:02:51]}  Nc6 {[%clk 0:03:00]} 5. c3 {[%clk 0:02:52]}  Qc7 {[%clk 0:03:00]} 6. Ne2 {[%clk 0:02:52]}  Bg4 {[%clk 0:02:57]} 7. O-O {[%clk 0:02:52]}  Nf6 {[%clk 0:02:49]} 8. Qe1 {[%clk 0:02:47]}  Bh5 {[%clk 0:02:47]} 9. Bf4 {[%clk 0:02:42]}  Qb6 {[%clk 0:02:43]} 10. Na3 {[%clk 0:02:36]}  a6 {[%clk 0:02:36]} 11. Rb1 {[%clk 0:02:34]}  e6 {[%clk 0:02:33]} 12. Nc2 {[%clk 0:02:34]}  Bg6 {[%clk 0:02:28]} 13. Nc1 {[%clk 0:02:33]}  Be7 {[%clk 0:02:14]} 14. Bxg6 {[%clk 0:02:27]}  hxg6 {[%clk 0:02:14]} 15. Nd3 {[%clk 0:02:27]}  Ne4 {[%clk 0:02:10]} 16. Qe2 {[%clk 0:02:14]}  Bd6 {[%clk 0:01:59]} 17. Ne3 {[%clk 0:01:55]}  Qc7 {[%clk 0:01:53]} 18. Bxd6 {[%clk 0:01:54]}  Qxd6 {[%clk 0:01:54]} 19. h3 {[%clk 0:01:48]}  O-O {[%clk 0:01:44]} 20. g3 {[%clk 0:01:44]}  b5 {[%clk 0:01:41]} 21. a3 {[%clk 0:01:42]}  a5 {[%clk 0:01:40]} 22. Kg2 {[%clk 0:01:41]}  b4 {[%clk 0:01:38]} 23. axb4 {[%clk 0:01:06]}  axb4 {[%clk 0:01:38]} 24. Nxb4 {[%clk 0:01:05]}  Nxb4 {[%clk 0:01:32]} 25. cxb4 {[%clk 0:01:06]}  Qxb4 {[%clk 0:01:33]} 26. Rfd1 {[%clk 0:01:02]}  Ra2 {[%clk 0:01:28]} 27. h4 {[%clk 0:01:00]}  Rb8 {[%clk 0:01:24]} 28. h5 {[%clk 0:00:52]}  gxh5 {[%clk 0:01:09]} 29. Qxh5 {[%clk 0:00:53]}  Rxb2 {[%clk 0:01:09]} 30. Rxb2 {[%clk 0:00:53]}  Qxb2 {[%clk 0:01:07]} 31. Ng4 {[%clk 0:00:49]}  f5 {[%clk 0:00:46]} 32. Nh6+ {[%clk 0:00:39]}  gxh6 {[%clk 0:00:40]} 33. Qg6+ {[%clk 0:00:40]}  Kf8 {[%clk 0:00:41]} 34. Qxh6+ {[%clk 0:00:40]}  Ke7 {[%clk 0:00:29]} 35. Qg7+ {[%clk 0:00:38]}  Kd6 {[%clk 0:00:29]} 36. Qe5+ {[%clk 0:00:38]}  Kd7 {[%clk 0:00:29]} 37. Qg7+ {[%clk 0:00:38]}  Kc6 {[%clk 0:00:27]} 38. Rf1 {[%clk 0:00:38]}  Rb3 {[%clk 0:00:19]} 39. Qh6 {[%clk 0:00:20]}  Rxg3+ {[%clk 0:00:09]} 40. Kh2 {[%clk 0:00:21]}  Rg5 {[%clk 0:00:03]} 41. Qxe6+ {[%clk 0:00:17]}  Kc7 {[%clk 0:00:03]} 42. Qe7+ {[%clk 0:00:12]}  Kc6 {[%clk 0:00:04]} 43. Qe8+ {[%clk 0:00:13]}  Kc7 {[%clk 0:00:03]} 44. Qe7+ {[%clk 0:00:13]}  Kc6 {[%clk 0:00:04]} 45. Qe8+ {[%clk 0:00:10]}  Kd6 {[%clk 0:00:04]} 46. Qd8+ {[%clk 0:00:08]}  Kc6 {[%clk 0:00:04]} 47. Qe8+ {[%clk 0:00:07]} 1/2-1/2


[Site "https://www.chess.com"]

[Event "Titled Tuesday Blitz June 20 Late 2023"]
[White "Itkis, Boris"]
[Black "Principe, Gerson"]
[WhiteFideId "1209167"]
[BlackFideId "3804550"]
[WhiteElo "2219"]
[BlackElo "2229"]
[Result "0-1"]
[Round "4"]
[TimeControl "180+2"]
[Date "2023.06.20"]
[WhiteClock "0:00:08"]
[BlackClock "0:00:07"]
[Board "99"]

1. c4 {[%clk 0:03:00]}  e6 {[%clk 0:02:56]} 2. Nf3 {[%clk 0:03:01]}  d5 {[%clk 0:02:57]} 3. e3 {[%clk 0:03:00]}  Nf6 {[%clk 0:02:57]} 4. b3 {[%clk 0:02:59]}  Be7 {[%clk 0:02:57]} 5. Bb2 {[%clk 0:02:56]}  O-O {[%clk 0:02:57]} 6. g3 {[%clk 0:02:55]}  b6 {[%clk 0:02:57]} 7. Bg2 {[%clk 0:02:56]}  Bb7 {[%clk 0:02:57]} 8. O-O {[%clk 0:02:56]}  dxc4 {[%clk 0:02:56]} 9. bxc4 {[%clk 0:02:56]}  c5 {[%clk 0:02:57]} 10. Qe2 {[%clk 0:02:57]}  Nc6 {[%clk 0:02:54]} 11. Ne1 {[%clk 0:02:56]}  Qd7 {[%clk 0:02:47]} 12. Nc3 {[%clk 0:02:55]}  Rfd8 {[%clk 0:02:43]} 13. d3 {[%clk 0:02:47]}  Ne5 {[%clk 0:02:22]} 14. Bxb7 {[%clk 0:02:48]}  Qxb7 {[%clk 0:02:22]} 15. f4 {[%clk 0:02:41]}  Nc6 {[%clk 0:02:18]} 16. g4 {[%clk 0:02:41]}  Qd7 {[%clk 0:01:58]} 17. g5 {[%clk 0:02:39]}  Ne8 {[%clk 0:01:58]} 18. Rf3 {[%clk 0:02:40]}  f5 {[%clk 0:01:42]} 19. gxf6 {[%clk 0:02:37]}  Bxf6 {[%clk 0:01:42]} 20. Ne4 {[%clk 0:02:34]}  Bxb2 {[%clk 0:01:41]} 21. Qxb2 {[%clk 0:02:35]}  Nd6 {[%clk 0:01:26]} 22. Nxd6 {[%clk 0:02:16]}  Qxd6 {[%clk 0:01:26]} 23. Rg3 {[%clk 0:02:17]}  Rd7 {[%clk 0:01:25]} 24. Rd1 {[%clk 0:02:14]}  e5 {[%clk 0:01:21]} 25. Ng2 {[%clk 0:02:09]}  Rf8 {[%clk 0:01:16]} 26. Kh1 {[%clk 0:02:07]}  Qe6 {[%clk 0:01:09]} 27. fxe5 {[%clk 0:01:48]}  Qxe5 {[%clk 0:01:02]} 28. Qxe5 {[%clk 0:01:47]}  Nxe5 {[%clk 0:01:03]} 29. Nf4 {[%clk 0:01:48]}  Nxc4 {[%clk 0:01:01]} 30. Rdg1 {[%clk 0:01:37]}  Nd6 {[%clk 0:00:43]} 31. Ne6 {[%clk 0:01:00]}  Rff7 {[%clk 0:00:42]} 32. e4 {[%clk 0:01:01]}  Rde7 {[%clk 0:00:36]} 33. Nd8 {[%clk 0:00:55]}  Rf2 {[%clk 0:00:31]} 34. Nc6 {[%clk 0:00:55]}  Rc7 {[%clk 0:00:27]} 35. Nd8 {[%clk 0:00:44]}  Re7 {[%clk 0:00:24]} 36. Nc6 {[%clk 0:00:44]}  Ref7 {[%clk 0:00:23]} 37. Nd8 {[%clk 0:00:43]}  Rd7 {[%clk 0:00:21]} 38. Ne6 {[%clk 0:00:39]}  g6 {[%clk 0:00:18]} 39. h4 {[%clk 0:00:35]}  Rf6 {[%clk 0:00:16]} 40. Ng5 {[%clk 0:00:31]}  Nf7 {[%clk 0:00:14]} 41. Nh3 {[%clk 0:00:28]}  Kf8 {[%clk 0:00:13]} 42. h5 {[%clk 0:00:25]}  gxh5 {[%clk 0:00:12]} 43. Rg8+ {[%clk 0:00:20]}  Ke7 {[%clk 0:00:13]} 44. R8g7 {[%clk 0:00:21]}  Rxd3 {[%clk 0:00:10]} 45. e5 {[%clk 0:00:20]}  Rxh3+ {[%clk 0:00:09]} 46. Kg2 {[%clk 0:00:20]}  Rhf3 {[%clk 0:00:03]} 47. exf6+ {[%clk 0:00:20]}  Rxf6 {[%clk 0:00:04]} 48. Re1+ {[%clk 0:00:21]}  Kd6 {[%clk 0:00:04]} 49. Rxh7 {[%clk 0:00:20]}  Ne5 {[%clk 0:00:02]} 50. Rxa7 {[%clk 0:00:19]}  Nd3 {[%clk 0:00:02]} 51. Rd1 {[%clk 0:00:19]}  c4 {[%clk 0:00:03]} 52. Ra4 {[%clk 0:00:18]}  Kc5 {[%clk 0:00:03]} 53. Ra8 {[%clk 0:00:17]}  b5 {[%clk 0:00:03]} 54. Rc8+ {[%clk 0:00:17]}  Kd4 {[%clk 0:00:04]} 55. Rd8+ {[%clk 0:00:17]}  Kc3 {[%clk 0:00:04]} 56. Rd5 {[%clk 0:00:14]}  Rf2+ {[%clk 0:00:04]} 57. Kg3 {[%clk 0:00:13]}  Rb2 {[%clk 0:00:04]} 58. Rxh5 {[%clk 0:00:13]}  b4 {[%clk 0:00:04]} 59. Rh4 {[%clk 0:00:12]}  Rxa2 {[%clk 0:00:04]} 60. Kf3 {[%clk 0:00:10]}  Rc2 {[%clk 0:00:04]} 61. Ke3 {[%clk 0:00:10]}  b3 {[%clk 0:00:04]} 62. Rg1 {[%clk 0:00:04]}  b2 {[%clk 0:00:05]} 63. Rgg4 {[%clk 0:00:05]}  Kb3 {[%clk 0:00:04]} 64. Rg8 {[%clk 0:00:03]}  b1=Q {[%clk 0:00:04]} 65. Rb8+ {[%clk 0:00:04]}  Nb4 {[%clk 0:00:05]} 66. Rh3 {[%clk 0:00:03]}  Qe1+ {[%clk 0:00:04]} 67. Kd4+ {[%clk 0:00:04]}  c3 {[%clk 0:00:03]} 68. Rh5 {[%clk 0:00:02]}  Qg1+ {[%clk 0:00:03]} 69. Ke5 {[%clk 0:00:01]}  Re2+ {[%clk 0:00:04]} 70. Kd6 {[%clk 0:00:02]}  Qd4+ {[%clk 0:00:03]} 71. Kc7 {[%clk 0:00:03]}  Qf4+ {[%clk 0:00:03]} 72. Kb6 {[%clk 0:00:04]}  Qxb8+ {[%clk 0:00:03]} 73. Ka5 {[%clk 0:00:04]}  Qa7+ {[%clk 0:00:03]} 74. Kb5 {[%clk 0:00:05]}  Qa6+ {[%clk 0:00:03]} 75. Kc5 {[%clk 0:00:05]}  Qc6+ {[%clk 0:00:04]} 76. Kd4 {[%clk 0:00:05]}  Rd2+ {[%clk 0:00:04]} 77. Ke3 {[%clk 0:00:05]}  Qd6 {[%clk 0:00:05]} 78. Rh4 {[%clk 0:00:05]}  Qd3+ {[%clk 0:00:05]} 79. Kf4 {[%clk 0:00:05]}  Rf2+ {[%clk 0:00:06]} 80. Kg5 {[%clk 0:00:05]}  Qg3+ {[%clk 0:00:06]} 81. Kh5 {[%clk 0:00:06]}  Rf5+ {[%clk 0:00:05]} 82. Kh6 {[%clk 0:00:06]}  Qxh4+ {[%clk 0:00:06]} 83. Kg7 {[%clk 0:00:07]}  Qf6+ {[%clk 0:00:06]} 84. Kg8 {[%clk 0:00:07]}  Rg5+ {[%clk 0:00:06]} 85. Kh7 {[%clk 0:00:08]}  Qg7# {[%clk 0:00:07]} 0-1


[Site "https://www.chess.com"]

[Event "Titled Tuesday Blitz June 20 Late 2023"]
[White "TheKnightOfBosnia"]
[Black "Kovalevsky, Stanislav"]
[BlackFideId "13508598"]
[WhiteElo "2598"]
[BlackElo "2112"]
[Result "0-1"]
[Round "4"]
[TimeControl "180+2"]
[Date "2023.06.20"]
[WhiteClock "0:00:13"]
[BlackClock "0:00:08"]
[Board "100"]

1. e4 {[%clk 0:03:00]}  e6 {[%clk 0:02:59]} 2. d4 {[%clk 0:03:00]}  d5 {[%clk 0:03:00]} 3. Nd2 {[%clk 0:03:01]}  dxe4 {[%clk 0:03:00]} 4. Nxe4 {[%clk 0:03:02]}  Nf6 {[%clk 0:03:01]} 5. Nxf6+ {[%clk 0:03:01]}  gxf6 {[%clk 0:03:01]} 6. g3 {[%clk 0:03:00]}  Bd7 {[%clk 0:02:58]} 7. Bg2 {[%clk 0:02:56]}  Bc6 {[%clk 0:02:58]} 8. Nf3 {[%clk 0:02:56]}  h5 {[%clk 0:02:50]} 9. O-O {[%clk 0:02:55]}  Qd5 {[%clk 0:02:40]} 10. b3 {[%clk 0:02:49]}  Be7 {[%clk 0:02:29]} 11. c4 {[%clk 0:02:49]}  Qf5 {[%clk 0:02:27]} 12. Re1 {[%clk 0:02:42]}  h4 {[%clk 0:02:13]} 13. Nxh4 {[%clk 0:02:37]}  Rxh4 {[%clk 0:02:13]} 14. Bxc6+ {[%clk 0:02:36]}  Nxc6 {[%clk 0:02:13]} 15. gxh4 {[%clk 0:02:35]}  O-O-O {[%clk 0:02:12]} 16. Re3 {[%clk 0:02:20]}  Nxd4 {[%clk 0:02:01]} 17. Qd3 {[%clk 0:01:59]}  Qg4+ {[%clk 0:01:53]} 18. Kf1 {[%clk 0:01:45]}  Nf5 {[%clk 0:01:18]} 19. Qc2 {[%clk 0:01:02]}  Nxe3+ {[%clk 0:00:42]} 20. Bxe3 {[%clk 0:01:03]}  Qh3+ {[%clk 0:00:41]} 21. Ke2 {[%clk 0:01:01]}  Qxh4 {[%clk 0:00:23]} 22. Bxa7 {[%clk 0:00:42]}  Qh5+ {[%clk 0:00:19]} 23. Kf1 {[%clk 0:00:40]}  Qxh2 {[%clk 0:00:19]} 24. Re1 {[%clk 0:00:30]}  Bb4 {[%clk 0:00:16]} 25. Rc1 {[%clk 0:00:26]}  Rd2 {[%clk 0:00:15]} 26. Qe4 {[%clk 0:00:19]}  Qh3+ {[%clk 0:00:12]} 27. Kg1 {[%clk 0:00:18]}  Rd8 {[%clk 0:00:09]} 28. Qg2 {[%clk 0:00:15]}  Qh7 {[%clk 0:00:08]} 29. Kf1 {[%clk 0:00:14]}  Rg8 {[%clk 0:00:07]} 30. Qf3 {[%clk 0:00:13]}  Qh2 {[%clk 0:00:06]} 31. Rd1 {[%clk 0:00:12]}  Qe5 {[%clk 0:00:05]} 32. Be3 {[%clk 0:00:11]}  f5 {[%clk 0:00:04]} 33. c5 {[%clk 0:00:11]}  Qe4 {[%clk 0:00:04]} 34. Qxe4 {[%clk 0:00:11]}  fxe4 {[%clk 0:00:05]} 35. c6 {[%clk 0:00:10]}  bxc6 {[%clk 0:00:05]} 36. Rd4 {[%clk 0:00:10]}  c5 {[%clk 0:00:05]} 37. Rxe4 {[%clk 0:00:10]}  Kd7 {[%clk 0:00:06]} 38. Bc1 {[%clk 0:00:08]}  f5 {[%clk 0:00:06]} 39. Rh4 {[%clk 0:00:08]}  Kd6 {[%clk 0:00:06]} 40. a3 {[%clk 0:00:08]}  Ba5 {[%clk 0:00:06]} 41. Bf4+ {[%clk 0:00:08]}  e5 {[%clk 0:00:06]} 42. Be3 {[%clk 0:00:08]}  Bb6 {[%clk 0:00:06]} 43. Rh6+ {[%clk 0:00:08]}  Kd5 {[%clk 0:00:06]} 44. Ke2 {[%clk 0:00:09]}  f4 {[%clk 0:00:06]} 45. Bd2 {[%clk 0:00:09]}  c4 {[%clk 0:00:07]} 46. bxc4+ {[%clk 0:00:09]}  Kxc4 {[%clk 0:00:07]} 47. Rc6+ {[%clk 0:00:09]}  Kd5 {[%clk 0:00:08]} 48. Rc2 {[%clk 0:00:09]}  Rg2 {[%clk 0:00:08]} 49. Kf3 {[%clk 0:00:09]}  Rxf2+ {[%clk 0:00:08]} 50. Kg4 {[%clk 0:00:09]}  Re2 {[%clk 0:00:07]} 51. Kf3 {[%clk 0:00:09]}  Rf2+ {[%clk 0:00:08]} 52. Kg4 {[%clk 0:00:10]}  Be3 {[%clk 0:00:08]} 53. Bxe3 {[%clk 0:00:09]}  Rxc2 {[%clk 0:00:08]} 54. Ba7 {[%clk 0:00:09]}  Ra2 {[%clk 0:00:08]} 55. Bb8 {[%clk 0:00:09]}  Rxa3 {[%clk 0:00:08]} 56. Bxc7 {[%clk 0:00:10]}  Rg3+ {[%clk 0:00:08]} 57. Kf5 {[%clk 0:00:10]}  f3 {[%clk 0:00:08]} 58. Bxe5 {[%clk 0:00:10]}  Rg2 {[%clk 0:00:07]} 59. Bg3 {[%clk 0:00:07]}  f2 {[%clk 0:00:07]} 60. Bxf2 {[%clk 0:00:07]}  Rxf2+ {[%clk 0:00:08]} 61. Kg4 {[%clk 0:00:07]}  Ke4 {[%clk 0:00:09]} 62. Kg3 {[%clk 0:00:08]}  Rf4 {[%clk 0:00:09]} 63. Kh3 {[%clk 0:00:08]}  Kf3 {[%clk 0:00:09]} 64. Kh2 {[%clk 0:00:09]}  Rg4 {[%clk 0:00:08]} 65. Kh3 {[%clk 0:00:10]}  Rg8 {[%clk 0:00:08]} 66. Kh4 {[%clk 0:00:10]}  Rg3 {[%clk 0:00:08]} 67. Kh5 {[%clk 0:00:11]}  Kf4 {[%clk 0:00:08]} 68. Kh4 {[%clk 0:00:11]}  Rg2 {[%clk 0:00:07]} 69. Kh3 {[%clk 0:00:11]}  Rg4 {[%clk 0:00:08]} 70. Kh2 {[%clk 0:00:11]}  Kf3 {[%clk 0:00:08]} 71. Kh3 {[%clk 0:00:12]}  Rf4 {[%clk 0:00:08]} 72. Kh2 {[%clk 0:00:12]}  Rf7 {[%clk 0:00:08]} 73. Kh3 {[%clk 0:00:13]}  Rh7# {[%clk 0:00:08]} 0-1


[Site "https://www.chess.com"]

[Event "Titled Tuesday Blitz June 20 Late 2023"]
[White "WindWhistler11"]
[Black "zano2023"]
[WhiteElo "2554"]
[BlackElo "2199"]
[Result "1-0"]
[Round "4"]
[TimeControl "180+2"]
[Date "2023.06.20"]
[WhiteClock "0:00:04"]
[BlackClock "0:00:05"]
[Board "104"]

1. Nf3 {[%clk 0:02:55]}  d6 {[%clk 0:02:59]} 2. c4 {[%clk 0:02:55]}  e5 {[%clk 0:02:59]} 3. g3 {[%clk 0:02:56]}  Nf6 {[%clk 0:02:57]} 4. Bg2 {[%clk 0:02:55]}  Be7 {[%clk 0:02:58]} 5. O-O {[%clk 0:02:54]}  O-O {[%clk 0:02:57]} 6. Nc3 {[%clk 0:02:54]}  Re8 {[%clk 0:02:55]} 7. b4 {[%clk 0:02:52]}  Nbd7 {[%clk 0:02:53]} 8. Bb2 {[%clk 0:02:48]}  Nf8 {[%clk 0:02:52]} 9. d4 {[%clk 0:02:45]}  Ng6 {[%clk 0:02:45]} 10. Qc2 {[%clk 0:02:34]}  c6 {[%clk 0:02:45]} 11. Rad1 {[%clk 0:02:34]}  Qc7 {[%clk 0:02:45]} 12. c5 {[%clk 0:02:24]}  Bf8 {[%clk 0:02:14]} 13. cxd6 {[%clk 0:02:10]}  Bxd6 {[%clk 0:02:13]} 14. a3 {[%clk 0:01:43]}  exd4 {[%clk 0:01:52]} 15. Nxd4 {[%clk 0:01:38]}  Be5 {[%clk 0:01:34]} 16. Qb1 {[%clk 0:00:53]}  Bd7 {[%clk 0:01:32]} 17. Nb3 {[%clk 0:00:51]}  Rad8 {[%clk 0:01:29]} 18. Rc1 {[%clk 0:00:41]}  Qb8 {[%clk 0:01:25]} 19. Nc5 {[%clk 0:00:33]}  Bc8 {[%clk 0:01:24]} 20. f4 {[%clk 0:00:32]}  Bxc3 {[%clk 0:01:02]} 21. Bxc3 {[%clk 0:00:31]}  Nd5 {[%clk 0:00:57]} 22. e4 {[%clk 0:00:08]}  Nxc3 {[%clk 0:00:45]} 23. Rxc3 {[%clk 0:00:09]}  b6 {[%clk 0:00:41]} 24. Nd3 {[%clk 0:00:07]}  Qd6 {[%clk 0:00:39]} 25. Nf2 {[%clk 0:00:07]}  Qd4 {[%clk 0:00:35]} 26. Rxc6 {[%clk 0:00:05]}  Bb7 {[%clk 0:00:33]} 27. Rc7 {[%clk 0:00:05]}  Ba6 {[%clk 0:00:27]} 28. Rd1 {[%clk 0:00:05]}  Qe3 {[%clk 0:00:23]} 29. Re1 {[%clk 0:00:05]}  Qd4 {[%clk 0:00:20]} 30. Qb3 {[%clk 0:00:05]}  Re7 {[%clk 0:00:17]} 31. Rxe7 {[%clk 0:00:05]}  Nxe7 {[%clk 0:00:17]} 32. b5 {[%clk 0:00:05]}  Bb7 {[%clk 0:00:05]} 33. Rd1 {[%clk 0:00:04]} 1-0


[Site "https://www.chess.com"]

[Event "Titled Tuesday Blitz June 20 Late 2023"]
[White "Sreyas Payyappat"]
[Black "Torres Dominguez, David"]
[WhiteFideId "46674969"]
[BlackFideId "2220857"]
[WhiteElo "2043"]
[BlackElo "1999"]
[Result "1-0"]
[Round "4"]
[TimeControl "180+2"]
[Date "2023.06.20"]
[WhiteClock "0:00:15"]
[BlackClock "0:00:08"]
[Board "105"]

1. e4 {[%clk 0:03:00]}  e5 {[%clk 0:02:59]} 2. Nf3 {[%clk 0:02:59]}  Nc6 {[%clk 0:03:00]} 3. Bc4 {[%clk 0:02:59]}  Bc5 {[%clk 0:02:58]} 4. c3 {[%clk 0:02:59]}  Nf6 {[%clk 0:02:59]} 5. d4 {[%clk 0:03:00]}  exd4 {[%clk 0:02:59]} 6. e5 {[%clk 0:03:00]}  d5 {[%clk 0:02:58]} 7. Bb5 {[%clk 0:03:00]}  Ne4 {[%clk 0:02:58]} 8. cxd4 {[%clk 0:03:01]}  Bb6 {[%clk 0:02:58]} 9. Nc3 {[%clk 0:03:01]}  O-O {[%clk 0:02:58]} 10. Be3 {[%clk 0:03:01]}  Bg4 {[%clk 0:02:58]} 11. h3 {[%clk 0:03:02]}  Bh5 {[%clk 0:02:58]} 12. Qc2 {[%clk 0:02:58]}  Bg6 {[%clk 0:02:58]} 13. Qb3 {[%clk 0:02:58]}  Ne7 {[%clk 0:02:54]} 14. O-O {[%clk 0:02:55]}  c6 {[%clk 0:02:54]} 15. Bd3 {[%clk 0:02:54]}  Nxc3 {[%clk 0:02:52]} 16. Qxc3 {[%clk 0:02:49]}  Bxd3 {[%clk 0:02:50]} 17. Qxd3 {[%clk 0:02:50]}  Ng6 {[%clk 0:02:47]} 18. Ng5 {[%clk 0:02:30]}  Qd7 {[%clk 0:02:44]} 19. f4 {[%clk 0:02:28]}  h6 {[%clk 0:02:41]} 20. f5 {[%clk 0:01:27]}  hxg5 {[%clk 0:02:41]} 21. fxg6 {[%clk 0:01:26]}  fxg6 {[%clk 0:02:41]} 22. Qxg6 {[%clk 0:01:25]}  Qe7 {[%clk 0:02:42]} 23. Kh1 {[%clk 0:01:21]}  Rxf1+ {[%clk 0:02:28]} 24. Rxf1 {[%clk 0:01:22]}  Rf8 {[%clk 0:02:28]} 25. Rxf8+ {[%clk 0:01:20]}  Qxf8 {[%clk 0:02:27]} 26. Qxg5 {[%clk 0:01:17]}  Qb4 {[%clk 0:02:27]} 27. Qf4 {[%clk 0:01:00]}  Qxb2 {[%clk 0:01:51]} 28. e6 {[%clk 0:00:59]}  Qb1+ {[%clk 0:01:35]} 29. Kh2 {[%clk 0:00:19]}  Qe4 {[%clk 0:01:23]} 30. Qf7+ {[%clk 0:00:18]}  Kh7 {[%clk 0:01:20]} 31. e7 {[%clk 0:00:17]}  Bc7+ {[%clk 0:00:59]} 32. Kh1 {[%clk 0:00:17]}  Qxe3 {[%clk 0:00:08]} 33. Qh5+ {[%clk 0:00:15]} 1-0


[Site "https://www.chess.com"]

[Event "Titled Tuesday Blitz June 20 Late 2023"]
[White "FuenfgegenWilly"]
[Black "Bluebaum, Matthias"]
[BlackFideId "24651516"]
[WhiteElo "2418"]
[BlackElo "2639"]
[Result "0-1"]
[Round "4"]
[TimeControl "180+2"]
[Date "2023.06.20"]
[WhiteClock "0:00:03"]
[BlackClock "0:02:13"]
[Board "106"]

1. d4 {[%clk 0:02:56]}  d5 {[%clk 0:03:00]} 2. c4 {[%clk 0:02:56]}  e6 {[%clk 0:03:01]} 3. Nc3 {[%clk 0:02:56]}  Bb4 {[%clk 0:03:01]} 4. cxd5 {[%clk 0:02:52]}  exd5 {[%clk 0:03:02]} 5. Nf3 {[%clk 0:02:51]}  Nf6 {[%clk 0:03:03]} 6. Bg5 {[%clk 0:02:50]}  h6 {[%clk 0:03:03]} 7. Bh4 {[%clk 0:02:50]}  O-O {[%clk 0:03:03]} 8. e3 {[%clk 0:02:48]}  Bf5 {[%clk 0:03:03]} 9. Bd3 {[%clk 0:02:47]}  Bxd3 {[%clk 0:03:03]} 10. Qxd3 {[%clk 0:02:48]}  Nbd7 {[%clk 0:03:01]} 11. O-O {[%clk 0:02:45]}  c6 {[%clk 0:03:01]} 12. a3 {[%clk 0:02:45]}  Bd6 {[%clk 0:03:01]} 13. b4 {[%clk 0:02:42]}  a6 {[%clk 0:03:01]} 14. Rab1 {[%clk 0:02:40]}  Re8 {[%clk 0:02:59]} 15. Nd2 {[%clk 0:02:28]}  Qc7 {[%clk 0:02:56]} 16. Bg3 {[%clk 0:02:27]}  Bxg3 {[%clk 0:02:55]} 17. hxg3 {[%clk 0:02:28]}  h5 {[%clk 0:02:54]} 18. a4 {[%clk 0:02:19]}  Qd6 {[%clk 0:02:54]} 19. Qf5 {[%clk 0:02:10]}  g6 {[%clk 0:02:54]} 20. Qf4 {[%clk 0:02:09]}  Qe7 {[%clk 0:02:48]} 21. b5 {[%clk 0:01:58]}  axb5 {[%clk 0:02:47]} 22. axb5 {[%clk 0:01:59]}  Nf8 {[%clk 0:02:48]} 23. bxc6 {[%clk 0:01:55]}  bxc6 {[%clk 0:02:49]} 24. Nf3 {[%clk 0:01:43]}  Ne6 {[%clk 0:02:49]} 25. Qh4 {[%clk 0:01:39]}  Kg7 {[%clk 0:02:37]} 26. Ng5 {[%clk 0:01:29]}  Ng4 {[%clk 0:02:29]} 27. Nxe6+ {[%clk 0:01:17]}  Qxe6 {[%clk 0:02:30]} 28. Rb7 {[%clk 0:01:07]}  Qf5 {[%clk 0:02:27]} 29. Ne2 {[%clk 0:00:33]}  Rab8 {[%clk 0:02:10]} 30. Rxb8 {[%clk 0:00:29]}  Rxb8 {[%clk 0:02:10]} 31. Qe7 {[%clk 0:00:29]}  Rb1 {[%clk 0:02:11]} 32. Nf4 {[%clk 0:00:06]}  Rxf1+ {[%clk 0:02:11]} 33. Kxf1 {[%clk 0:00:06]}  Qb1+ {[%clk 0:02:11]} 34. Ke2 {[%clk 0:00:05]}  Qc2+ {[%clk 0:02:12]} 35. Ke1 {[%clk 0:00:04]}  Qxf2+ {[%clk 0:02:13]} 36. Kd1 {[%clk 0:00:03]}  Nxe3+ {[%clk 0:02:13]} 0-1


[Site "https://www.chess.com"]